[Event "Early-Titled-Tuesday-Blitz-May-28-2024"]
[Site "Chess.com"]
[Date "2024.05.28"]
[Round "9"]
[White "TatjanaVasilevich"]
[Black "Al_Shima"]
[Result "1-0"]
[WhiteElo "2593"]
[BlackElo "2480"]
[TimeControl "180+1"]
[EndTime "9:48:50 PDT"]
[Termination "TatjanaVasilevich won by resignation"]

1. d4 {[%clk 0:03:00.9]} 1... Nf6 {[%clk 0:02:58.7]} 2. c4 {[%clk 0:02:59.6]}
2... e6 {[%clk 0:02:58.6]} 3. Nc3 {[%clk 0:02:59.6]} 3... Bb4 {[%clk 0:02:58.5]}
4. e3 {[%clk 0:02:58.9]} 4... b6 {[%clk 0:02:55.1]} 5. Bd3 {[%clk 0:02:54.2]}
5... Bb7 {[%clk 0:02:54.7]} 6. f3 {[%clk 0:02:53.9]} 6... O-O {[%clk 0:02:52.9]}
7. Ne2 {[%clk 0:02:53.7]} 7... d5 {[%clk 0:02:52]} 8. cxd5 {[%clk 0:02:52.1]}
8... exd5 {[%clk 0:02:52.9]} 9. a3 {[%clk 0:02:51.7]} 9... Bd6 {[%clk
0:02:52.6]} 10. O-O {[%clk 0:02:50.4]} 10... c5 {[%clk 0:02:50.9]} 11. Nb5
{[%clk 0:02:33.2]} 11... c4 {[%clk 0:02:47.5]} 12. Bc2 {[%clk 0:02:15.7]} 12...
a6 {[%clk 0:02:39.4]} 13. Nxd6 {[%clk 0:02:14.8]} 13... Qxd6 {[%clk 0:02:40.3]}
14. Nc3 {[%clk 0:02:14.9]} 14... Nc6 {[%clk 0:02:37.4]} 15. Qe2 {[%clk
0:02:11.4]} 15... b5 {[%clk 0:02:35.3]} 16. Rd1 {[%clk 0:02:10.7]} 16... Rad8
{[%clk 0:02:31.9]} 17. Qf2 {[%clk 0:02:09.4]} 17... Rfe8 {[%clk 0:01:53.6]} 18.
h3 {[%clk 0:02:06]} 18... Qc7 {[%clk 0:01:37]} 19. e4 {[%clk 0:01:57.6]} 19...
b4 {[%clk 0:01:29.3]} 20. axb4 {[%clk 0:01:52.8]} 20... Nxb4 {[%clk 0:01:30.2]}
21. e5 {[%clk 0:01:52.1]} 21... Nxc2 {[%clk 0:01:29.5]} 22. Qxc2 {[%clk
0:01:49]} 22... Nd7 {[%clk 0:01:29.3]} 23. f4 {[%clk 0:01:47.3]} 23... f6 {[%clk
0:01:19.5]} 24. Be3 {[%clk 0:01:45.9]} 24... fxe5 {[%clk 0:01:18.3]} 25. fxe5
{[%clk 0:01:46.8]} 25... Rf8 {[%clk 0:01:17.2]} 26. Rf1 {[%clk 0:01:41.7]} 26...
Qb6 {[%clk 0:01:17.5]} 27. Qe2 {[%clk 0:01:35.2]} 27... Qe6 {[%clk 0:01:12.6]}
28. Qh5 {[%clk 0:01:28.7]} 28... Nb6 {[%clk 0:01:10.7]} 29. Ne2 {[%clk
0:01:27.8]} 29... Nc8 {[%clk 0:00:52.7]} 30. Nf4 {[%clk 0:01:26.3]} 30... Qf5
{[%clk 0:00:52.8]} 31. Qxf5 {[%clk 0:01:24.6]} 31... Rxf5 {[%clk 0:00:53.7]} 32.
Ne6 {[%clk 0:01:24.5]} 32... Rxf1+ {[%clk 0:00:50.8]} 33. Rxf1 {[%clk
0:01:25.4]} 33... Re8 {[%clk 0:00:51.5]} 34. Nc5 {[%clk 0:01:24.8]} 34... Bc6
{[%clk 0:00:50.6]} 35. Nxa6 {[%clk 0:01:23.7]} 35... Ne7 {[%clk 0:00:49]} 36.
Bg5 {[%clk 0:01:22.2]} 36... Ng6 {[%clk 0:00:42]} 37. Nc5 {[%clk 0:01:21.4]}
37... h6 {[%clk 0:00:40.1]} 38. Bd2 {[%clk 0:01:20.2]} 38... Rb8 {[%clk
0:00:36.6]} 39. Bc3 {[%clk 0:01:19.5]} 39... Ne7 {[%clk 0:00:31.9]} 40. e6
{[%clk 0:01:17.4]} 40... Be8 {[%clk 0:00:20.8]} 41. Ra1 {[%clk 0:01:07.6]} 41...
Bg6 {[%clk 0:00:20.4]} 42. Ra7 {[%clk 0:01:06.8]} 42... Re8 {[%clk 0:00:20.7]}
43. Rc7 {[%clk 0:01:03.8]} 43... Bf5 {[%clk 0:00:20.3]} 44. Rd7 {[%clk
0:01:01.5]} 44... Ng6 {[%clk 0:00:19.9]} 45. Rxd5 {[%clk 0:00:55.2]} 45... Bxe6
{[%clk 0:00:20.4]} 46. Nxe6 {[%clk 0:00:54.7]} 46... Rxe6 {[%clk 0:00:21.3]} 47.
Rc5 {[%clk 0:00:55.2]} 47... Nf4 {[%clk 0:00:19.5]} 48. Rxc4 {[%clk 0:00:54.1]}
48... Nd3 {[%clk 0:00:19.7]} 49. d5 {[%clk 0:00:52.6]} 49... Rd6 {[%clk
0:00:19.3]} 50. Rc8+ {[%clk 0:00:50.7]} 50... Kh7 {[%clk 0:00:18]} 51. Rc7
{[%clk 0:00:51.1]} 51... Kg6 {[%clk 0:00:12.6]} 52. Rxg7+ {[%clk 0:00:50.4]}
52... Kf5 {[%clk 0:00:13.5]} 53. Rf7+ {[%clk 0:00:48.7]} 53... Ke4 {[%clk
0:00:14]} 54. Rf6 {[%clk 0:00:46.4]} 54... Rxd5 {[%clk 0:00:13.2]} 55. Rxh6
{[%clk 0:00:45.5]} 55... Nf4 {[%clk 0:00:13.1]} 56. g3 {[%clk 0:00:45.1]} 56...
Ne2+ {[%clk 0:00:12.4]} 57. Kf2 {[%clk 0:00:45]} 57... Nxc3 {[%clk 0:00:09.7]}
58. bxc3 {[%clk 0:00:45.9]} 58... Rd2+ {[%clk 0:00:10.1]} 59. Ke1 {[%clk
0:00:46.3]} 59... Rd3 {[%clk 0:00:10.6]} 60. Ke2 {[%clk 0:00:38.4]} 60... Rxg3
{[%clk 0:00:10]} 61. Rh4+ {[%clk 0:00:38.9]} 61... Kd5 {[%clk 0:00:09.9]} 62.
Kd2 {[%clk 0:00:37.2]} 62... Kc5 {[%clk 0:00:09.3]} 63. Kc2 {[%clk 0:00:36.9]}
63... Rg1 {[%clk 0:00:09.7]} 64. Rg4 {[%clk 0:00:34.2]} 64... Rh1 {[%clk
0:00:09.5]} 65. h4 {[%clk 0:00:34.4]} 65... Rh2+ {[%clk 0:00:10.1]} 66. Kb3
{[%clk 0:00:34.4]} 66... Kb5 {[%clk 0:00:11]} 67. Rg5+ {[%clk 0:00:34.4]} 67...
Kc6 {[%clk 0:00:10.6]} 68. h5 {[%clk 0:00:35.3]} 68... Rh4 {[%clk 0:00:10.6]}
69. c4 {[%clk 0:00:32.3]} 69... Kb6 {[%clk 0:00:11.3]} 70. Kb4 {[%clk
0:00:32.2]} 70... Kc6 {[%clk 0:00:11.1]} 71. Rg6+ {[%clk 0:00:32.2]} 71... Kc7
{[%clk 0:00:11.7]} 72. h6 {[%clk 0:00:33.1]} 72... Kd7 {[%clk 0:00:11.9]} 73.
Kb5 {[%clk 0:00:32.7]} 73... Kc7 {[%clk 0:00:12.8]} 74. c5 {[%clk 0:00:32.2]}
74... Kd7 {[%clk 0:00:13.3]} 75. Rg7+ {[%clk 0:00:32.2]} 75... Ke6 {[%clk
0:00:14.2]} 76. h7 {[%clk 0:00:33.1]} 76... Kf6 {[%clk 0:00:14.8]} 77. Ra7
{[%clk 0:00:32.6]} 77... Ke6 {[%clk 0:00:15.3]} 78. c6 {[%clk 0:00:30.6]} 78...
Rh1 {[%clk 0:00:16.2]} 79. Rd7 {[%clk 0:00:28.9]} 79... Rb1+ {[%clk 0:00:16]}
80. Ka6 {[%clk 0:00:29.2]} 80... Ra1+ {[%clk 0:00:16.5]} 81. Kb7 {[%clk
0:00:28.6]} 81... Rb1+ {[%clk 0:00:17.2]} 82. Kc8 {[%clk 0:00:28.8]} 82... Ra1
{[%clk 0:00:16.1]} 83. Rb7 {[%clk 0:00:26.7]} 83... Rh1 {[%clk 0:00:15.9]} 84.
c7 {[%clk 0:00:25.4]} 84... Ke7 {[%clk 0:00:16.2]} 85. Kb8 {[%clk 0:00:24.6]}
1-0

[Event "Early-Titled-Tuesday-Blitz-May-28-2024"]
[Site "Chess.com"]
[Date "2024.05.28"]
[Round "9"]
[White "GMthekingindian"]
[Black "Engima32"]
[Result "1-0"]
[WhiteElo "2365"]
[BlackElo "2474"]
[TimeControl "180+1"]
[EndTime "9:48:55 PDT"]
[Termination "GMthekingindian won by checkmate"]

1. d4 {[%clk 0:03:00.9]} 1... Nf6 {[%clk 0:02:59.7]} 2. Nf3 {[%clk 0:03:01]}
2... g6 {[%clk 0:02:59.9]} 3. g3 {[%clk 0:03:00.3]} 3... Bg7 {[%clk 0:02:59.5]}
4. Bg2 {[%clk 0:03:00.5]} 4... O-O {[%clk 0:03:00.4]} 5. O-O {[%clk 0:03:01.1]}
5... d6 {[%clk 0:03:01.3]} 6. b3 {[%clk 0:03:01.6]} 6... Nc6 {[%clk 0:03:02]} 7.
Bb2 {[%clk 0:03:01.5]} 7... a6 {[%clk 0:03:02.8]} 8. Nbd2 {[%clk 0:02:55.6]}
8... Rb8 {[%clk 0:03:02]} 9. e4 {[%clk 0:02:55.5]} 9... Bg4 {[%clk 0:03:01]} 10.
h3 {[%clk 0:02:52.1]} 10... Bd7 {[%clk 0:03:00]} 11. e5 {[%clk 0:02:51.8]} 11...
Nd5 {[%clk 0:02:59.2]} 12. c4 {[%clk 0:02:50]} 12... Nb6 {[%clk 0:02:59.5]} 13.
Qe2 {[%clk 0:02:43.8]} 13... Qc8 {[%clk 0:02:58.9]} 14. Kh2 {[%clk 0:02:43.1]}
14... dxe5 {[%clk 0:02:57]} 15. dxe5 {[%clk 0:02:42.3]} 15... Rd8 {[%clk
0:02:53.8]} 16. Ne4 {[%clk 0:02:22.8]} 16... Bf5 {[%clk 0:02:49.5]} 17. Nc5
{[%clk 0:02:14.3]} 17... Nd7 {[%clk 0:02:45.1]} 18. Nxd7 {[%clk 0:02:08.5]}
18... Qxd7 {[%clk 0:02:44.4]} 19. Rfd1 {[%clk 0:02:07.8]} 19... Qe6 {[%clk
0:02:42.3]} 20. Ng5 {[%clk 0:02:05.4]} 20... Qc8 {[%clk 0:02:38]} 21. g4 {[%clk
0:01:56.8]} 21... Be6 {[%clk 0:02:04.2]} 22. f4 {[%clk 0:01:36.2]} 22... h6
{[%clk 0:02:01.3]} 23. Nxe6 {[%clk 0:01:01.5]} 23... Qxe6 {[%clk 0:02:02.2]} 24.
Bd5 {[%clk 0:01:01.6]} 24... Qc8 {[%clk 0:01:59.3]} 25. e6 {[%clk 0:00:59.3]}
25... f6 {[%clk 0:01:50.6]} 26. f5 {[%clk 0:00:35.7]} 26... Nb4 {[%clk
0:01:18.1]} 27. fxg6 {[%clk 0:00:20.8]} 27... Nxd5 {[%clk 0:01:16.8]} 28. cxd5
{[%clk 0:00:19]} 28... c6 {[%clk 0:01:16.9]} 29. Rac1 {[%clk 0:00:18.2]} 29...
Qc7+ {[%clk 0:01:16.9]} 30. Kh1 {[%clk 0:00:18.9]} 30... Qg3 {[%clk 0:01:15.6]}
31. Qg2 {[%clk 0:00:17.2]} 31... Qxg2+ {[%clk 0:01:06.3]} 32. Kxg2 {[%clk
0:00:17.2]} 32... cxd5 {[%clk 0:01:06.9]} 33. Ba3 {[%clk 0:00:13.9]} 33... Rbc8
{[%clk 0:01:01]} 34. Rxc8 {[%clk 0:00:08.6]} 34... Rxc8 {[%clk 0:01:01.9]} 35.
Rxd5 {[%clk 0:00:08.2]} 35... f5 {[%clk 0:01:01.5]} 36. gxf5 {[%clk 0:00:06.7]}
36... Bf6 {[%clk 0:01:01.4]} 37. Rd7 {[%clk 0:00:05.7]} 37... Kf8 {[%clk
0:01:01.6]} 38. Rxb7 {[%clk 0:00:03.6]} 38... Rc2+ {[%clk 0:01:01.7]} 39. Kf3
{[%clk 0:00:03.3]} 39... Rxa2 {[%clk 0:01:02.3]} 40. Rb8+ {[%clk 0:00:03]} 40...
Kg7 {[%clk 0:01:02.3]} 41. Bc5 {[%clk 0:00:02.7]} 41... Rb2 {[%clk 0:01:00.8]}
42. b4 {[%clk 0:00:03.2]} 42... a5 {[%clk 0:01:00.2]} 43. Rb7 {[%clk 0:00:02.7]}
43... Kf8 {[%clk 0:00:57.9]} 44. Rb8+ {[%clk 0:00:02.2]} 44... Kg7 {[%clk
0:00:58]} 45. Rb7 {[%clk 0:00:02.8]} 45... Rb3+ {[%clk 0:00:55.5]} 46. Ke4
{[%clk 0:00:02.1]} 46... Kf8 {[%clk 0:00:42.3]} 47. Rb8+ {[%clk 0:00:01.9]}
47... Kg7 {[%clk 0:00:42.2]} 48. Rb7 {[%clk 0:00:02.8]} 48... Rxh3 {[%clk
0:00:24.4]} 49. bxa5 {[%clk 0:00:02.5]} 49... Rh4+ {[%clk 0:00:23.1]} 50. Kd5
{[%clk 0:00:02.6]} 50... Kf8 {[%clk 0:00:22.4]} 51. Rb8+ {[%clk 0:00:02.4]}
51... Kg7 {[%clk 0:00:22.5]} 52. Rb7 {[%clk 0:00:03.3]} 52... Kf8 {[%clk
0:00:21.7]} 53. a6 {[%clk 0:00:03.1]} 53... Rh1 {[%clk 0:00:20.2]} 54. a7 {[%clk
0:00:02.9]} 54... Rd1+ {[%clk 0:00:20.8]} 55. Kc6 {[%clk 0:00:03.1]} 55... Ra1
{[%clk 0:00:20.7]} 56. Rb8+ {[%clk 0:00:02.9]} 56... Kg7 {[%clk 0:00:20.4]} 57.
a8=Q {[%clk 0:00:03.8]} 57... Rxa8 {[%clk 0:00:20.6]} 58. Rxa8 {[%clk
0:00:04.1]} 58... h5 {[%clk 0:00:21.5]} 59. Kd7 {[%clk 0:00:04.1]} 59... h4
{[%clk 0:00:21.4]} 60. Bg1 {[%clk 0:00:04.6]} 60... h3 {[%clk 0:00:20.7]} 61.
Bh2 {[%clk 0:00:04.5]} 61... Kh6 {[%clk 0:00:21.4]} 62. Ra3 {[%clk 0:00:03.1]}
62... Kg5 {[%clk 0:00:21.6]} 63. Rxh3 {[%clk 0:00:03.5]} 63... Kxf5 {[%clk
0:00:22.3]} 64. Rf3+ {[%clk 0:00:03.3]} 64... Kxg6 {[%clk 0:00:22.8]} 65. Rg3+
{[%clk 0:00:02.1]} 65... Kf5 {[%clk 0:00:22.5]} 66. Rf3+ {[%clk 0:00:03]} 66...
Kg6 {[%clk 0:00:22.8]} 67. Re3 {[%clk 0:00:03.2]} 67... Kf5 {[%clk 0:00:22.7]}
68. Re2 {[%clk 0:00:04.1]} 68... Kg6 {[%clk 0:00:23]} 69. Bg1 {[%clk 0:00:04.6]}
69... Kf5 {[%clk 0:00:23.4]} 70. Bc5 {[%clk 0:00:05.1]} 70... Kg6 {[%clk
0:00:22.1]} 71. Bxe7 {[%clk 0:00:06]} 71... Bd4 {[%clk 0:00:22.2]} 72. Rg2+
{[%clk 0:00:05.7]} 72... Kf5 {[%clk 0:00:22.5]} 73. Bd6 {[%clk 0:00:06.2]} 73...
Ke4 {[%clk 0:00:21.1]} 74. e7 {[%clk 0:00:06]} 74... Kf3 {[%clk 0:00:22]} 75.
Rd2 {[%clk 0:00:05.7]} 75... Be3 {[%clk 0:00:21.8]} 76. Rd3 {[%clk 0:00:06.2]}
76... Ke4 {[%clk 0:00:21.7]} 77. Rxe3+ {[%clk 0:00:07.1]} 77... Kxe3 {[%clk
0:00:22.6]} 78. e8=Q+ {[%clk 0:00:07.3]} 78... Kd4 {[%clk 0:00:23.5]} 79. Qe5+
{[%clk 0:00:07.6]} 79... Kc4 {[%clk 0:00:23.9]} 80. Qc5+ {[%clk 0:00:08]} 80...
Kd3 {[%clk 0:00:24.8]} 81. Qb4 {[%clk 0:00:07.8]} 81... Ke2 {[%clk 0:00:25.7]}
82. Bb8 {[%clk 0:00:08.2]} 82... Kf3 {[%clk 0:00:26]} 83. Qf4+ {[%clk
0:00:08.3]} 83... Ke2 {[%clk 0:00:26.3]} 84. Qg3 {[%clk 0:00:08.4]} 84... Kd2
{[%clk 0:00:26]} 85. Kd6 {[%clk 0:00:08.9]} 85... Kc2 {[%clk 0:00:26.5]} 86. Kd5
{[%clk 0:00:09.8]} 86... Kb2 {[%clk 0:00:26.4]} 87. Kc4 {[%clk 0:00:10.1]} 87...
Ka2 {[%clk 0:00:27]} 88. Qg2+ {[%clk 0:00:08.5]} 88... Ka1 {[%clk 0:00:26.6]}
89. Be5+ {[%clk 0:00:08.3]} 89... Kb1 {[%clk 0:00:26.8]} 90. Qb2# {[%clk
0:00:08.2]} 1-0

[Event "Early-Titled-Tuesday-Blitz-May-28-2024"]
[Site "Chess.com"]
[Date "2024.05.28"]
[Round "9"]
[White "alexrustemov"]
[Black "shimastream"]
[Result "1/2-1/2"]
[WhiteElo "2836"]
[BlackElo "3025"]
[TimeControl "180+1"]
[EndTime "9:48:57 PDT"]
[Termination "Game drawn by repetition"]

1. d4 {[%clk 0:03:00.9]} 1... b6 {[%clk 0:03:00.9]} 2. Nf3 {[%clk 0:02:59.5]}
2... Bb7 {[%clk 0:03:00.9]} 3. g3 {[%clk 0:02:59.8]} 3... c5 {[%clk 0:02:58.4]}
4. Bg2 {[%clk 0:02:57.9]} 4... cxd4 {[%clk 0:02:58.5]} 5. Qxd4 {[%clk
0:02:47.3]} 5... Nf6 {[%clk 0:02:52.9]} 6. c4 {[%clk 0:02:42.1]} 6... g6 {[%clk
0:02:52.5]} 7. O-O {[%clk 0:02:40.4]} 7... Bg7 {[%clk 0:02:52.9]} 8. Nc3 {[%clk
0:02:39]} 8... O-O {[%clk 0:02:53.3]} 9. Qh4 {[%clk 0:02:37.4]} 9... d6 {[%clk
0:02:47.9]} 10. Bh6 {[%clk 0:02:37.2]} 10... Nbd7 {[%clk 0:02:43.9]} 11. Rac1
{[%clk 0:02:33.8]} 11... Rc8 {[%clk 0:02:42.4]} 12. b3 {[%clk 0:02:33.2]} 12...
Rc5 {[%clk 0:02:38.8]} 13. Bxg7 {[%clk 0:02:33]} 13... Kxg7 {[%clk 0:02:39]} 14.
Rfd1 {[%clk 0:02:32]} 14... Qa8 {[%clk 0:02:32.5]} 15. Qd4 {[%clk 0:02:31.1]}
15... Rfc8 {[%clk 0:02:28.2]} 16. Ne1 {[%clk 0:02:30.7]} 16... Ne5 {[%clk
0:01:47.1]} 17. Bxb7 {[%clk 0:02:23.3]} 17... Qxb7 {[%clk 0:01:48]} 18. Nd3
{[%clk 0:02:11.6]} 18... Nxd3 {[%clk 0:01:47.8]} 19. exd3 {[%clk 0:02:02.5]}
19... Kg8 {[%clk 0:01:42.7]} 20. Qe3 {[%clk 0:01:57.5]} 20... a6 {[%clk
0:01:39.3]} 21. a4 {[%clk 0:01:56.1]} 21... R5c7 {[%clk 0:01:35.2]} 22. Re1
{[%clk 0:01:51.6]} 22... Ng4 {[%clk 0:01:10.4]} 23. Qe4 {[%clk 0:01:43.8]} 23...
Nf6 {[%clk 0:00:48.4]} 24. Qxb7 {[%clk 0:01:41.9]} 24... Rxb7 {[%clk 0:00:49.3]}
25. d4 {[%clk 0:01:29.6]} 25... e6 {[%clk 0:00:47.1]} 26. d5 {[%clk 0:01:10.5]}
26... e5 {[%clk 0:00:44.1]} 27. Kg2 {[%clk 0:01:03.4]} 27... Rbc7 {[%clk
0:00:41.4]} 28. h3 {[%clk 0:01:01]} 28... h5 {[%clk 0:00:39.6]} 29. Re3 {[%clk
0:00:58]} 29... Kf8 {[%clk 0:00:39.4]} 30. Rce1 {[%clk 0:00:57.3]} 30... Nd7
{[%clk 0:00:37.1]} 31. f4 {[%clk 0:00:54.5]} 31... f5 {[%clk 0:00:32.5]} 32. Kf3
{[%clk 0:00:37.2]} 32... e4+ {[%clk 0:00:28.4]} 33. Ke2 {[%clk 0:00:37]} 33...
Nc5 {[%clk 0:00:29]} 34. Rb1 {[%clk 0:00:36.7]} 34... h4 {[%clk 0:00:23.4]} 35.
g4 {[%clk 0:00:23.7]} 35... Nd3 {[%clk 0:00:20.6]} 36. Rf1 {[%clk 0:00:23.3]}
36... Kf7 {[%clk 0:00:19.2]} 37. g5 {[%clk 0:00:19.8]} 37... Rb7 {[%clk
0:00:18]} 38. Kd2 {[%clk 0:00:19.7]} 38... Nb4 {[%clk 0:00:15.9]} 39. Re2 {[%clk
0:00:16.7]} 39... Ke7 {[%clk 0:00:15.6]} 40. Ke3 {[%clk 0:00:16.9]} 40... b5
{[%clk 0:00:15]} 41. axb5 {[%clk 0:00:15.9]} 41... axb5 {[%clk 0:00:15.9]} 42.
Nxb5 {[%clk 0:00:15.3]} 42... Nxd5+ {[%clk 0:00:16]} 43. Kd4 {[%clk 0:00:14.8]}
43... Nc7 {[%clk 0:00:15.6]} 44. Nxc7 {[%clk 0:00:12]} 44... Rcxc7 {[%clk
0:00:11]} 45. Rb1 {[%clk 0:00:12.6]} 45... Rb4 {[%clk 0:00:09.2]} 46. Reb2
{[%clk 0:00:12.1]} 46... Rcb7 {[%clk 0:00:09.3]} 47. Kc3 {[%clk 0:00:12.3]}
47... Ke6 {[%clk 0:00:09.4]} 48. Ra2 {[%clk 0:00:12.5]} 48... R4b6 {[%clk
0:00:09.5]} 49. b4 {[%clk 0:00:10.6]} 49... Rc7 {[%clk 0:00:09.8]} 50. Kd4
{[%clk 0:00:10.8]} 50... Rbc6 {[%clk 0:00:08.7]} 51. Rc2 {[%clk 0:00:10.6]}
51... Rb7 {[%clk 0:00:08.6]} 52. b5 {[%clk 0:00:10.7]} 52... Rc5 {[%clk
0:00:07.9]} 53. Rc3 {[%clk 0:00:11.1]} 53... Rb6 {[%clk 0:00:06.9]} 54. Ra1
{[%clk 0:00:11.1]} 54... Rb7 {[%clk 0:00:07.2]} 55. Ra6 {[%clk 0:00:10.8]} 55...
Rbc7 {[%clk 0:00:07.6]} 56. Ra4 {[%clk 0:00:08.2]} 56... Kd7 {[%clk 0:00:07.3]}
57. Rb4 {[%clk 0:00:08.3]} 57... Ra7 {[%clk 0:00:05.9]} 58. Rcb3 {[%clk
0:00:08.1]} 58... Ra1 {[%clk 0:00:04.9]} 59. b6 {[%clk 0:00:08.3]} 59... Kc8
{[%clk 0:00:05.1]} 60. b7+ {[%clk 0:00:08.3]} 60... Kb8 {[%clk 0:00:05.6]} 61.
Rb6 {[%clk 0:00:08.8]} 61... Rd1+ {[%clk 0:00:05.6]} 62. Ke3 {[%clk 0:00:09.3]}
62... Rxc4 {[%clk 0:00:04.4]} 63. Ke2 {[%clk 0:00:08.8]} 63... Rd5 {[%clk
0:00:03.7]} 64. Ra6 {[%clk 0:00:09]} 64... Rc2+ {[%clk 0:00:03.3]} 65. Ke3
{[%clk 0:00:09.3]} 65... Rd3+ {[%clk 0:00:03.8]} 66. Rxd3 {[%clk 0:00:09.3]}
66... exd3 {[%clk 0:00:04.7]} 67. Kxd3 {[%clk 0:00:09.8]} 67... Rh2 {[%clk
0:00:04.6]} 68. Rxd6 {[%clk 0:00:09.5]} 68... Rxh3+ {[%clk 0:00:05.2]} 69. Kd4
{[%clk 0:00:10]} 69... Rh1 {[%clk 0:00:04.6]} 70. Rxg6 {[%clk 0:00:09.7]} 70...
h3 {[%clk 0:00:05.1]} 71. Ke5 {[%clk 0:00:09.8]} 71... h2 {[%clk 0:00:04.5]} 72.
Rh6 {[%clk 0:00:08.1]} 72... Re1+ {[%clk 0:00:04.7]} 73. Kxf5 {[%clk 0:00:08.5]}
73... h1=Q {[%clk 0:00:05.6]} 74. Rxh1 {[%clk 0:00:08.3]} 74... Rxh1 {[%clk
0:00:06.5]} 75. g6 {[%clk 0:00:06.2]} 75... Kxb7 {[%clk 0:00:06.6]} 76. Kf6
{[%clk 0:00:06.1]} 76... Kc7 {[%clk 0:00:06.8]} 77. f5 {[%clk 0:00:06.5]} 77...
Kd7 {[%clk 0:00:07.1]} 78. Kf7 {[%clk 0:00:04.3]} 78... Rg1 {[%clk 0:00:06.3]}
79. f6 {[%clk 0:00:04.8]} 79... Kd6 {[%clk 0:00:06]} 80. g7 {[%clk 0:00:05.3]}
80... Ke5 {[%clk 0:00:06.4]} 81. Ke7 {[%clk 0:00:04.1]} 81... Rg2 {[%clk
0:00:06.5]} 82. Kf7 {[%clk 0:00:03]} 82... Rg3 {[%clk 0:00:05.9]} 83. Ke7 {[%clk
0:00:03.2]} 83... Rg2 {[%clk 0:00:06]} 84. Kf7 {[%clk 0:00:03.7]} 84... Kf5
{[%clk 0:00:05.9]} 85. Ke7 {[%clk 0:00:03.7]} 85... Ke5 {[%clk 0:00:05.8]}
1/2-1/2